[Event "Czech Open-Rapid 2022"]
[Site "Pardubice"]
[Date "2022.07.21"]
[Round "6.43"]
[White "Laith, Kasib"]
[Black "Juros, Zbynek"]
[Result "1-0"]
[ECO "B50"]
[WhiteElo "2079"]
[BlackElo "1575"]
[Annotator "NA RC"]
[PlyCount "86"]
[EventDate "2022.07.20"]
[EventType "swiss"]
[EventCountry "CZE"]
[SourceTitle "playchess.com"]
[Source "ChessBase"]
[SourceQuality "1"]
[TimeControl "1200+10"]

1. e4 {[%emt 0:01:02]} c5 {[%emt 0:00:01]} 2. Nf3 {[%emt 0:00:02]} d6 {[%emt 0:00:02]} 3. g3 {[%emt 0:00:01]} g6 {[%emt 0:00:44]} 4. d3 {[%emt 0:00:01]} Bg7 {[%emt 0:00:05]} 5. Bg2 {[%emt 0:00:01]} h6 {[%emt 0:00:15]} 6. c3 {[%emt 0:00:09]} e5 {[%emt 0:00:11]} 7. O-O {[%emt 0:00:04]} Ne7 {[%emt 0:00:05]} 8. Re1 {[%emt 0:00:04]} O-O {[%emt 0:00:13]} 9. h3 {[%emt 0:00:35]} f5 {[%emt 0:00:18]} 10. Nbd2 {[%emt 0:00:50]} f4 {[%emt 0:00:21]} 11. Nf1 {[%emt 0:01:31]} g5 {[%emt 0:01:18]} 12. d4 {[%emt 0:00:01]} cxd4 {[%emt 0:04:58]} 13. cxd4 {[%emt 0:00:02]} Qe8 {[%emt 0:03:16]} 14. dxe5 {[%emt 0:00:26]} dxe5 {[%emt 0:00:03]} 15. Bd2 {[%emt 0:00:04]} Nbc6 {[%emt 0:00:27]} 16. Bc3 {[%emt 0:00:27]} Qh5 {[%emt 0:00:33]} 17. N3h2 {[%emt 0:00:02]} Qg6 {[%emt 0:02:24]} 18. Nf3 {[%emt 0:00:15]} Be6 {[%emt 0:00:44]} 19. Qe2 {[%emt 0:01:08]} Rf7 {[%emt 0:00:02]} 20. Rad1 {[%emt 0:00:20]} Raf8 {[%emt 0:00:01]} 21. Rd6 {[%emt 0:00:19]} b5 {[%emt 0:01:50]} 22. b4 {[%emt 0:00:34]} a6 {[%emt 0:00:24]} 23. N1h2 {[%emt 0:00:04]} Rd8 {[%emt 0:00:38]} 24. Red1 {[%emt 0:00:13]} Rxd6 {[%emt 0:01:24]} 25. Rxd6 {[%emt 0:00:05]} Bc4 {[%emt 0:00:42]} 26. Qd1 {[%emt 0:01:32]} Rf6 {[%emt 0:00:26]} 27. Rxf6 {[%emt 0:00:51]} Qxf6 {[%emt 0:00:18]} 28. Ng4 {[%emt 0:00:07]} Qe6 {[%emt 0:00:03]} 29. Qa1 {[%emt 0:03:12]} Ng6 {[%emt 0:00:34]} 30. a3 {[%emt 0:01:32]} Qd6 {[%emt 0:00:04]} 31. Kh2 {[%emt 0:00:25]} Kh7 {[%emt 0:00:23]} 32. Kg1 {[%emt 0:00:50]} Kg8 {[%emt 0:00:06]} 33. Nd2 {[%emt 0:00:14]} Nd4 {[%emt 0:00:29]} 34. Nxc4 {[%emt 0:00:15]} bxc4 {[%emt 0:00:43]} 35. Qa2 {[%emt 0:00:29]} Qe6 {[%emt 0:00:17]} 36. Bxd4 {[%emt 0:00:32]} exd4 {[%emt 0:00:02]} 37. Bf1 Kh7 {[%emt 0:01:16]} 38. Qxc4 {[%emt 0:00:26]} fxg3 {[%emt 0:00:20]} 39. Qxe6 {[%emt 0:00:15]} gxf2+ {[%emt 0:00:15]} 40. Nxf2 {[%emt 0:00:15]} Nh4 {[%emt 0:00:05]} 41. Bxa6 {[%emt 0:00:12]} Nf3+ {[%emt 0:00:28]} 42. Kg2 {[%emt 0:00:15]} Nh4+ {[%emt 0:00:10]} 43. Kf1 {[%emt 0:00:08]} h5 {[%emt 0:00:22]} 1-0

[Event "Czech Open-Rapid 2022"]
[Site "Pardubice"]
[Date "2022.07.21"]
[Round "6.44"]
[White "Danek, Pavel"]
[Black "Vavrinkova, Jitka"]
[Result "1-0"]
[ECO "A40"]
[WhiteElo "1851"]
[BlackElo "1548"]
[Annotator "NA RC COMBH"]
[PlyCount "39"]
[EventDate "2022.07.20"]
[EventType "swiss"]
[EventCountry "CZE"]
[SourceTitle "playchess.com"]
[Source "ChessBase"]
[SourceQuality "1"]
[TimeControl "1200+10"]

1. d4 {[%emt 0:00:01]} e6 {[%emt 0:00:02]} 2. Nf3 {[%emt 0:00:02]} d5 {[%emt 0:00:02]} 3. Bg5 {[%emt 0:00:02]} Nf6 {[%emt 0:00:08]} 4. Nbd2 {[%emt 0:00:04]} Be7 {[%emt 0:00:08]} 5. e3 {[%emt 0:00:01]} O-O {[%emt 0:00:11]} 6. Bd3 {[%emt 0:00:03]} Nbd7 {[%emt 0:00:15]} 7. c3 {[%emt 0:00:03]} c5 {[%emt 0:00:53]} 8. Qc2 {[%emt 0:00:06]} c4 {[%emt 0:00:16]} 9. Be2 {[%emt 0:00:02]} Re8 {[%emt 0:00:18]} 10. e4 {[%emt 0:00:32]} h6 {[%emt 0:01:02]} 11. Bh4 {[%emt 0:00:09]} Nf8 {[%emt 0:00:21]} 12. e5 {[%emt 0:00:39]} N6h7 {[%emt 0:00:35]} 13. Bxe7 {[%emt 0:00:04]} Qxe7 {[%emt 0:00:17]} 14. O-O {[%emt 0:00:14]} f6 {[%emt 0:00:58]} 15. Rae1 {[%emt 0:01:35]} f5 {[%emt 0:00:35]} 16. h3 {[%emt 0:01:08]} Qf7 {[%emt 0:00:37]} 17. Nh2 {[%emt 0:03:29]} Ng6 {[%emt 0:00:40]} 18. Bh5 {[%emt 0:00:16]} Ng5 {[%emt 0:02:41]} 19. Nhf3 {[%emt 0:00:48]} Ne4 {[%emt 0:00:25]} 20. Nh4 {[%emt 0:00:27]} 1-0

[Event "Czech Open-Rapid 2022"]
[Site "Pardubice"]
[Date "2022.07.21"]
[Round "7.1"]
[White "Donchenko, Alexander"]
[Black "Korobov, Anton"]
[Result "1-0"]
[ECO "A88"]
[WhiteElo "2640"]
[BlackElo "2692"]
[Annotator "TA"]
[PlyCount "93"]
[EventDate "2022.07.20"]
[EventType "swiss"]
[EventCountry "CZE"]
[SourceTitle "playchess.com"]
[Source "ChessBase"]
[SourceQuality "1"]
[TimeControl "1200+10"]

{[%evp 14,93,39,23,64,56,59,58,54,48,54,54,46,9,52,44,56,50,73,59,61,62,72,61,86,64,60,60,91,93,89,15,63,45,185,121,134,116,110,39,109,100,331,335,357,351,348,300,321,321,297,268,254,264,520,515,474,501,942,936,937,933,1005,885,868,864,858,856,847,821,1026,1026,997,935,1017,1017,1006,995,987,920,868,775]} 1. Nf3 {[%emt 0:00:02]} g6 {[%emt 0:00:08]} 2. d4 {[%emt 0:00:12]} Bg7 {[%emt 0:00:02]} 3. c4 {[%emt 0:00:05]} f5 {[%emt 0:00:30]} 4. g3 {[%emt 0:00:11]} Nf6 {[%emt 0:00:02]} 5. Bg2 {[%emt 0:00:03]} O-O {[%emt 0:00:03]} 6. Nc3 {[%emt 0:00:03]} d6 {[%emt 0:00:07]} 7. O-O {[%emt 0:00:03]} c6 {[%emt 0:00:09] is currently scoring better than 7...Qe8.} 8. Re1 {[%emt 0:00:20]} Nbd7 {[%emt 0:00:36] A88: Dutch Defence: Leningrad System: 5 Nf3 0-0 6 0-0 d6 7 Nc3 c6.} 9. e4 {[%emt 0:01:30]} Nxe4 {[%emt 0:00:18]} 10. Nxe4 {[%emt 0:00:03]} fxe4 {[%emt 0:00:02] White is slightly better.} 11. Rxe4 {[%emt 0:00:45]} Nf6 {[%emt 0:00:21]} 12. Re1 {[%emt 0:00:16]} Bf5 {[%emt 0:00:22]} 13. Qe2 {[%emt 0:00:27]} Qb6 {[%emt 0:01:03]} (13... e5 $5) 14. b3 {[%emt 0:01:02] [#]} a5 $146 {[%emt 0:02:00]} ({Predecessor:} 14... Rae8 15. Bb2 d5 16. Ng5 e6 17. Nf3 Ne4 18. c5 Qa5 19. a3 g5 20. b4 Qa4 {0-1 (70) Pesotskiy,M (2211)-Mamedyarov,S (2770) Chess.com INT 2021}) 15. Ba3 {[%emt 0:00:29]} (15. Qxe7 $2 Rae8 16. Qxd6 Rxe1+ 17. Nxe1 Ne8 18. Bd5+ Kh8 $19) 15... Rfe8 {[%emt 0:02:13]} 16. Rad1 {[%emt 0:00:19]} a4 {[%emt 0:00:52]} 17. b4 {[%emt 0:00:10]} Qc7 {[%emt 0:01:07]} 18. h3 {[%emt 0:00:57]} Rad8 {[%emt 0:01:17]} 19. b5 {[%emt 0:01:48]} cxb5 {[%emt 0:00:50]} 20. cxb5 {[%emt 0:00:05]} Rc8 {[%emt 0:03:56]} 21. g4 {[%emt 0:02:05]} Bd7 {[%emt 0:00:14]} 22. Ng5 {[%emt 0:01:03]} (22. Rc1 $16 Qa5 23. Rxc8 Rxc8 24. Rb1 (24. Qxe7 $2 Re8 $19)) 22... Qb6 {[%emt 0:00:18]} (22... Qc4 $11 {should be considered.}) 23. Ne6 {[%emt 0:01:30]} Bxb5 {[%emt 0:00:26]} (23... Qxb5 $14 24. Qxb5 Bxb5) 24. Qb2 {[%emt 0:00:29]} ({White should play} 24. Qd2 $1 $18) 24... Qa5 $16 {[%emt 0:00:25]} 25. Bb4 {[%emt 0:00:45]} (25. Bxb7 $6 Rb8 26. Bb4 Qb6 $14) 25... a3 {[%emt 0:00:53]} 26. Bxa3 {[%emt 0:02:33]} ({Resist} 26. Bxa5 axb2 27. Rd2 Bc6 $14) ({Don't play} 26. Qxa3 Qxa3 27. Bxa3 Bc6 $14) ({Better is} 26. Qd2 $16 Qa4 27. Re3 (27. Bxb7 $2 Rc2 $19) (27. Nxg7 Kxg7 28. Rc1 Rxc1 $16)) 26... Bh8 {[%emt 0:00:08]} (26... Bc4 $1 $14) 27. Bb4 $36 {[%emt 0:00:19][%mdl 2048] Keeping Black busy. White is more active.} Qa6 {[%emt 0:01:18] [#]} (27... Qa4 $16 {keeps fighting.}) 28. g5 $1 $18 {[%emt 0:00:58]} Nh5 {[%emt 0:00:03]} 29. Bd5 {[%emt 0:00:06]} Bc4 {[%emt 0:00:04]} 30. Nc7+ {[%emt 0:00:09]} Bxd5 {[%emt 0:00:02]} 31. Nxa6 {[%emt 0:00:02]} bxa6 {[%emt 0:00:01]} 32. Rc1 {[%emt 0:00:42] Black must now prevent Rxc8.} Rb8 {[%emt 0:00:45] And now ...a5 would win.} 33. Qd2 {[%emt 0:00:12]} Ng7 $2 {[%emt 0:00:18] [#]} (33... Bg7 34. Ba5 Bf8) 34. Rxe7 $3 {[%emt 0:01:14][%mdl 512] White is clearly winning.} Rxe7 {[%emt 0:01:05]} (34... Nf5 35. Rxe8+) 35. Bxd6 {[%emt 0:00:01]} Nf5 {[%emt 0:00:28]} (35... Ree8 $142 36. Bxb8 Rxb8) 36. Bxb8 {[%emt 0:00:48]} Bxd4 {[%emt 0:00:12]} 37. Rc8+ {[%emt 0:00:19]} Kf7 {[%emt 0:00:03]} 38. Rc7 {[%emt 0:00:05]} Rxc7 {[%emt 0:00:23]} 39. Bxc7 {[%emt 0:00:01]} Nh4 {[%emt 0:00:24]} 40. Qf4+ {[%emt 0:00:10]} Nf5 {[%emt 0:00:01]} 41. Be5 {[%emt 0:00:14]} Bxe5 {[%emt 0:00:35]} 42. Qxe5 {[%emt 0:00:01]} Bxa2 {[%emt 0:00:01]} 43. Qh8 {[%emt 0:00:12]} Ng7 {[%emt 0:00:18]} 44. Qxh7 {[%emt 0:00:08]} a5 {[%emt 0:00:01]} 45. Qh4 {[%emt 0:00:06]} Be6 {[%emt 0:00:25]} 46. Qf4+ {[%emt 0:00:27]} Kg8 {[%emt 0:00:09]} 47. h4 {[%emt 0:00:04] Weighted Error Value: White=0.14 (very precise) /Black=0.36} 1-0

[Event "Czech Open-Rapid 2022"]
[Site "Pardubice"]
[Date "2022.07.21"]
[Round "7.2"]
[White "Gressmann, Moritz"]
[Black "Harsha Bharathakoti"]
[Result "0-1"]
[ECO "A43"]
[WhiteElo "2114"]
[BlackElo "2547"]
[Annotator "TA"]
[PlyCount "66"]
[EventDate "2022.07.20"]
[EventType "swiss"]
[EventCountry "CZE"]
[SourceTitle "playchess.com"]
[Source "ChessBase"]
[SourceQuality "1"]
[TimeControl "1200+10"]

{[%evp 9,66,37,17,12,45,45,50,41,58,52,64,68,65,60,84,44,44,15,85,68,223,45,160,58,160,141,143,-85,-76,-137,-130,-147,-139,-304,-302,-320,-297,-294,-310,-304,-305,-372,-365,-547,-568,-742,-727,-775,-777,-1126,-1120,-1234,-1199,-5904,-3477,-2117,-1801,-4910,-1961]} 1. d4 {[%emt 0:00:02]} Nf6 {[%emt 0:00:05]} 2. Nf3 {[%emt 0:00:01]} c5 {[%emt 0:00:10]} 3. d5 {[%emt 0:00:01]} b5 {[%emt 0:00:00]} 4. Bg5 {[%emt 0:00:03]} g6 {[%emt 0:00:00]} 5. Bxf6 {[%emt 0:00:21]} exf6 {[%emt 0:00:00]} 6. Nbd2 {[%emt 0:01:25] [#] A43: Schmid Benoni.} f5 $146 {[%emt 0:02:11]} ({Predecessor:} 6... d6 7. e4 a6 8. a4 b4 9. Bd3 Bg7 10. Nc4 O-O 11. a5 Qe7 12. O-O Nd7 13. Qd2 Rb8 14. c3 Rd8 15. Ra4 Ne5 16. Nfxe5 fxe5 17. Nb6 Bd7 18. Ra2 Bb5 19. cxb4 Rxb6 20. axb6 c4 21. Be2 Rc8 22. Ra3 {1-0 (22) Horvath,J (2535)-Amrein,R (2245) Pecs 1997}) 7. e4 {[%emt 0:01:59]} fxe4 {[%emt 0:00:03]} 8. Nxe4 {[%emt 0:00:06] White is slightly better.} f5 {[%emt 0:00:06]} 9. Ned2 {[%emt 0:00:38] Pair of Knights!} b4 {[%emt 0:02:26]} 10. Nc4 {[%emt 0:01:34]} (10. Qe2+ {is more complex.} Kf7 11. O-O-O d6 12. h4) 10... d6 {[%emt 0:00:03]} 11. h4 $36 {[%emt 0:01:03][%mdl 2048] White has good play.} h6 {[%emt 0:00:23]} 12. Qe2+ {[%emt 0:00:40]} Kf7 {[%emt 0:00:19]} 13. O-O-O {[%emt 0:00:14]} Qf6 {[%emt 0:01:10]} (13... Rh7 $11) 14. Re1 $16 {[%emt 0:00:54]} Bg7 $2 {[%emt 0:01:33] [#]} ({Black should try} 14... Kg7 $14) 15. Kb1 $2 {[%emt 0:00:40]} (15. Ng5+ $1 $18 {[%mdl 512]} hxg5 16. hxg5 Qxg5+ 17. Kb1) 15... Rf8 {[%emt 0:03:33]} ({Black should play} 15... Rd8 $14) 16. Ng5+ {[%emt 0:05:08]} hxg5 {[%emt 0:00:22]} (16... Kg8 $1 $14) 17. hxg5 {[%emt 0:00:01]} Qd8 {[%emt 0:00:01]} 18. f4 $2 {[%emt 0:01:16]} (18. Rh7 $2 Kg8 19. Rh3 f4 $19) (18. Qe3 $1 $16) 18... a5 {[%emt 0:01:42]} (18... Kg8 $6 19. g4 $11) 19. g3 {[%emt 0:01:19]} (19. Rh7 Ra7 20. Qe3 Rg8 $17) (19. g4 $142 fxg4 20. Qf2 (20. Rh7 $2 Ra7 $19)) 19... Ra7 $17 {[%emt 0:00:16]} (19... Rh8 $2 20. Rxh8 Bxh8 21. Nxd6+ $1 {[%mdl 512]} Kg8 22. Qe8+ Qxe8 23. Rxe8+ Kh7 24. Nxc8 $18) 20. Rh7 {[%emt 0:00:20]} Kg8 {[%emt 0:00:39]} 21. Qh2 {[%emt 0:00:16]} (21. Rh1 $17) 21... Re7 $19 {[%emt 0:02:18][%cal Re7e1]} 22. Be2 {[%emt 0:00:01]} Ba6 {[%emt 0:00:02] aiming for ...Bxc4.} ({Avoid the trap} 22... Rfe8 $2 23. Rh1 $17) 23. Rh1 {[%emt 0:00:43] Hoping for g4.} Bxc4 {[%emt 0:01:42]} 24. Bxc4 {[%emt 0:00:14][%cal Og3g4]} Rfe8 $1 {[%emt 0:00:15] ( -> ...Re1+)} 25. Be2 {[%emt 0:02:58][%cal Og3g4]} Nd7 {[%emt 0:02:40] Strongly threatening ...Nf8.} (25... Rxe2 {gets mated.} 26. Rxg7+ $1 {[%mdl 512]} Kxg7 27. Qh7+ Kf8 28. Qh8+ Kf7 29. Rh7#) 26. g4 {[%emt 0:00:16] [#]} (26. Rh8+ $142 Kf7 27. Rh7) 26... Nf8 $1 {[%emt 0:00:19] Black is clearly winning.} (26... Rxe2 {[#] leads to mate.} 27. Rxg7+ $1 {[%mdl 512]} Kxg7 28. Qh7+ Kf8 29. Qh8+ Kf7 30. Rh7#) 27. Rxg7+ {[%emt 0:01:23]} Rxg7 {[%emt 0:00:02]} 28. Qh8+ {[%emt 0:00:24]} Kf7 {[%emt 0:00:00]} 29. gxf5 Rxe2 {[%emt 0:00:32]} 30. f6 {[%emt 0:00:03]} Rg8 {[%emt 0:00:01]} 31. Rh7+ {[%emt 0:00:09]} Nxh7 {[%emt 0:00:01]} 32. Qxh7+ {[%emt 0:00:01]} Kf8 {[%emt 0:00:00][%cal Re2e1]} 33. Qh6+ {[%emt 0:00:04]} Ke8 {[%emt 0:00:02] Weighted Error Value: White=1.21/Black=0.25 (precise)} 0-1

[Event "Czech Open-Rapid 2022"]
[Site "Pardubice"]
[Date "2022.07.21"]
[Round "7.3"]
[White "Cerveny, Martin"]
[Black "Plat, Vojtech"]
[Result "1/2-1/2"]
[ECO "A41"]
[WhiteElo "2396"]
[BlackElo "2554"]
[Annotator "TA"]
[PlyCount "208"]
[EventDate "2022.07.20"]
[EventType "swiss"]
[EventCountry "CZE"]
[SourceTitle "playchess.com"]
[Source "ChessBase"]
[SourceQuality "1"]
[TimeControl "1200+10"]

{[%evp 28,208,4,-7,-5,-5,0,-5,0,0,55,34,29,22,25,17,29,28,28,28,30,30,39,31,47,30,30,33,87,10,15,0,0,0,0,0,6,3,13,0,0,0,0,0,0,0,0,0,0,0,0,0,0,0,0,0,0,0,0,0,0,-8,-8,-8,-8,-9,0,-37,-25,-37,-7,-20,-8,-8,-8,-8,-8,-11,-8,-8,0,-8,0,-8,-8,-8,-8,-12,-12,-23,0,0,0,-8,0,0,0,0,0,0,0,0,0,0,0,0,0,0,0,0,0,0,0,0,0,0,0,0,0,0,0,0,0,0,0,0,0,0,0,0,0,0,0,0,0,0,0,0,0,0,0,0,0,0,0,0,0,0,0,0,0,0,0,0,0,0,0,0,0,0,0,0,0,0,0,0,0,0,0,0,0,0,0,0,0,0,0,0,0,0,0,0,14]} 1. d4 {[%emt 0:00:03]} d6 {[%emt 0:00:01]} 2. Nf3 {[%emt 0:00:22]} g6 {[%emt 0:00:02]} 3. g3 {[%emt 0:00:07]} Bg7 {[%emt 0:00:01]} 4. Bg2 {[%emt 0:00:01]} Nd7 {[%emt 0:00:04]} 5. O-O {[%emt 0:00:06]} e5 {[%emt 0:00:02]} 6. dxe5 {[%emt 0:01:01]} dxe5 {[%emt 0:00:25]} 7. Nc3 {[%emt 0:00:28]} Ne7 {[%emt 0:00:02]} 8. e4 {[%emt 0:01:46]} O-O {[%emt 0:00:12]} 9. b3 {[%emt 0:00:19]} Nc6 {[%emt 0:01:04]} 10. Ba3 {[%emt 0:00:18]} Re8 {[%emt 0:00:02]} 11. Nd5 {[%emt 0:00:37]} Nd4 {[%emt 0:00:37]} 12. c3 {[%emt 0:00:12]} Nb5 {[%emt 0:01:30]} 13. Bb2 {[%emt 0:00:06]} c6 {[%emt 0:00:02]} 14. Ne3 {[%emt 0:00:10]} Nc5 {[%emt 0:00:12]} 15. a4 {[%emt 0:00:44]} Nd6 {[%emt 0:00:14]} 16. Nd2 {[%emt 0:00:02]} b6 {[%emt 0:01:13]} 17. Ba3 {[%emt 0:01:19]} Ba6 {[%emt 0:00:32]} 18. Re1 {[%emt 0:00:19]} Qf6 {[%emt 0:01:29]} ({Black should try} 18... Nd3 $11) 19. Bxc5 {[%emt 0:00:43]} (19. b4 $5 {[%cal Rb4c5]} Nd3 20. Rf1 $14) 19... bxc5 {[%emt 0:00:01]} 20. Bf1 {[%emt 0:00:06]} Bc8 {[%emt 0:00:31]} 21. Nec4 {[%emt 0:00:57]} Rd8 {[%emt 0:00:05]} 22. Qe2 {[%emt 0:00:42]} Nxc4 {[%emt 0:02:11]} 23. Nxc4 {[%emt 0:00:06]} Rb8 {[%emt 0:00:01]} 24. Na5 {[%emt 0:01:29]} Bh6 {[%emt 0:04:17]} 25. Red1 {[%emt 0:00:08]} Be6 {[%emt 0:00:09]} 26. Rxd8+ {[%emt 0:00:31]} Rxd8 {[%emt 0:00:02]} 27. Rd1 {[%emt 0:00:02]} Rb8 {[%emt 0:02:41]} (27... Bf8 $14) 28. Nxc6 {[%emt 0:01:38]} (28. Rd6 $16) 28... Rxb3 $11 {[%emt 0:00:01]} 29. Nxa7 {[%emt 0:00:02]} ({Reject} 29. Rd8+ Bf8 30. Qd1 Kg7 31. Nxa7 Rb2 $11) 29... Ra3 {[%emt 0:01:14]} 30. Nb5 {[%emt 0:00:17]} Rxa4 {[%emt 0:00:49]} 31. Nc7 {[%emt 0:00:30]} Ra2 {[%emt 0:00:53]} 32. Qe1 {[%emt 0:00:57]} Bb3 {[%emt 0:00:16]} 33. Ra1 {[%emt 0:00:42]} Rxa1 {[%emt 0:02:19]} 34. Qxa1 {[%emt 0:00:02]} Qc6 {[%emt 0:00:04]} 35. Qa7 {[%emt 0:01:10]} Bf8 {[%emt 0:00:57]} 36. Qb8 {[%emt 0:00:16]} Bc2 {[%emt 0:00:03]} 37. Nd5 {[%emt 0:00:13]} Qd6 {[%emt 0:00:01]} 38. Qxd6 {[%emt 0:00:41]} Bxd6 {[%emt 0:00:00]} 39. f3 {[%emt 0:00:30]} Bb3 {[%emt 0:00:36]} 40. Ne3 {[%emt 0:00:22]} Kg7 {[%emt 0:00:10]} 41. Bc4 {[%emt 0:00:04]} Ba4 {[%emt 0:00:00]} 42. Kf2 {[%emt 0:00:07]} Bd7 {[%emt 0:00:04]} 43. Bd3 {[%emt 0:00:24]} Bc7 {[%emt 0:00:05]} 44. g4 {[%emt 0:00:14]} Ba5 {[%emt 0:00:08]} 45. Nd5 {[%emt 0:00:08]} Be6 {[%emt 0:00:06]} 46. c4 {[%emt 0:00:05]} h5 {[%emt 0:00:39]} 47. h3 {[%emt 0:00:04]} Bd8 {[%emt 0:00:07]} 48. Kg3 {[%emt 0:00:19]} Kh6 {[%emt 0:00:07]} 49. Bc2 {[%emt 0:00:20]} Ba5 {[%emt 0:00:03]} 50. Ba4 {[%emt 0:00:37]} Be1+ {[%emt 0:00:16]} 51. Kg2 {[%emt 0:00:01]} Kg5 {[%emt 0:00:02]} 52. Bb5 {[%emt 0:00:15]} hxg4 {[%emt 0:00:27]} 53. hxg4 {[%emt 0:00:01]} Ba5 {[%emt 0:00:06]} 54. Kg3 {[%emt 0:00:12]} Be1+ {[%emt 0:00:20]} 55. Kg2 {[%emt 0:00:01]} f5 {[%emt 0:00:02]} 56. gxf5 {[%emt 0:00:14]} gxf5 {[%emt 0:00:01]} 57. Nc7 {[%emt 0:01:21]} (57. Kf1 $5 {[%cal Rf1e1]} Ba5 58. exf5 Bxf5 59. Ke2 $11) 57... Bf7 {[%emt 0:00:40]} 58. Nd5 {[%emt 0:01:21]} fxe4 {[%emt 0:00:15]} 59. fxe4 {[%emt 0:00:01]} Bh5 {[%emt 0:00:13]} 60. Ba6 {[%emt 0:00:35]} Bd2 {[%emt 0:00:23]} 61. Kg3 {[%emt 0:00:07]} Bc1 {[%emt 0:00:05]} 62. Bb5 {[%emt 0:00:05]} Bb2 {[%emt 0:00:02]} 63. Ba6 {[%emt 0:00:04]} Bd4 {[%emt 0:00:04]} 64. Bb5 {[%emt 0:00:04]} Bg6 {[%emt 0:00:01]} 65. Kf3 {[%emt 0:00:02]} Kh4 {[%emt 0:00:00]} 66. Nf6 $1 {[%emt 0:00:37]} Bf7 {[%emt 0:00:11]} 67. Ba6 {[%emt 0:00:22]} Be6 {[%emt 0:00:06]} 68. Bb5 {[%emt 0:00:10]} Bf7 {[%emt 0:00:25]} 69. Ba6 {[%emt 0:00:02]} Kg5 {[%emt 0:00:29]} 70. Nd5 {[%emt 0:00:04]} Bh5+ {[%emt 0:00:09]} 71. Kg3 {[%emt 0:00:01]} Bd1 {[%emt 0:00:15]} 72. Bb5 {[%emt 0:00:13]} Bc2 {[%emt 0:00:03]} 73. Kf3 {[%emt 0:00:02]} Kh4 {[%emt 0:00:01]} 74. Bd7 {[%emt 0:01:16]} Bb3 {[%emt 0:00:27]} 75. Nb6 {[%emt 0:00:04]} Bd1+ {[%emt 0:00:26]} 76. Kg2 {[%emt 0:00:02]} Be2 {[%emt 0:00:07]} (76... Bc2 $5 {[%cal Rc2e4]} 77. Bf5 Kg5 $17) 77. Be6 {[%emt 0:00:06]} Bd1 {[%emt 0:00:30]} 78. Bd7 {[%emt 0:00:07]} Bb3 {[%emt 0:00:07]} 79. Kf3 {[%emt 0:00:09]} Bc3 {[%emt 0:00:07]} 80. Ba4 {[%emt 0:00:48]} Ba2 {[%emt 0:00:03]} 81. Ke3 {[%emt 0:00:59]} Bb1 {[%emt 0:00:18]} 82. Kf3 {[%emt 0:00:08]} Kh3 {[%emt 0:00:17]} 83. Bc6 {[%emt 0:00:17]} Bd4 {[%emt 0:00:03]} 84. Bd7+ {[%emt 0:00:05]} Kh2 {[%emt 0:00:06]} 85. Bc6 {[%emt 0:00:06]} Kh3 {[%emt 0:00:06]} 86. Bd7+ {[%emt 0:00:01]} Kh4 {[%emt 0:00:00]} 87. Ba4 {[%emt 0:00:06]} Bd3 {[%emt 0:00:05]} 88. Bd7 {[%emt 0:00:19]} Bc2 {[%emt 0:00:06]} 89. Nd5 {[%emt 0:00:25]} Bd1+ {[%emt 0:00:09]} 90. Kg2 {[%emt 0:00:01]} Bg4 {[%emt 0:00:07]} 91. Ba4 {[%emt 0:00:08]} Bh3+ {[%emt 0:00:14]} 92. Kf3 {[%emt 0:00:02]} Bf1 {[%emt 0:00:01]} 93. Bb5 {[%emt 0:00:03]} Kh3 {[%emt 0:00:05]} 94. Nf6 $1 {[%emt 0:01:07]} Bg2+ {[%emt 0:00:08]} 95. Ke2 {[%emt 0:00:01]} Kg3 {[%emt 0:00:08]} (95... Kh4 $5 {[%cal Rh4g5]}) 96. Bd7 {[%emt 0:00:32]} Bf3+ {[%emt 0:00:02]} 97. Kd3 {[%emt 0:00:08]} Kf2 {[%emt 0:00:44]} 98. Be6 {[%emt 0:00:17]} Be2+ {[%emt 0:00:11]} 99. Kc2 {[%emt 0:00:10]} Ke3 {[%emt 0:00:12]} 100. Bd5 $1 {[%emt 0:00:08]} Bd3+ {[%emt 0:00:13]} 101. Kb3 {[%emt 0:00:02]} Be2 {[%emt 0:00:19]} 102. Ka4 {[%emt 0:00:07]} Bb2 {[%emt 0:00:08]} 103. Kb5 {[%emt 0:00:02]} Kd4 {[%emt 0:00:01]} 104. Ne8 {[%emt 0:00:29]} Bxc4+ {[%emt 0:00:36]} 1/2-1/2